bitfinex-derivatives/quotes_SOLF0:USTF0_20241127
["timestamp","ask_amount","ask_price","bid_price","bid_amount"]
[1732726824368,2.07861526,238.86,238.78,6.46222873]
[1732726825272,6.46222873,238.85,238.78,6.46222873]
[1732726825562,2.04407981,238.84,238.78,6.46222873]
[1732726825769,6.46222873,238.83,238.7,4.1119]
[1732726825965,6.46222873,238.81,238.7,2.7322]
[1732726826162,7.76192873,238.83,238.74,6.46222873]
[1732726826364,2.0922,238.78,238.74,6.46222873]
[1732726826567,1.2997,238.83,238.74,6.46222873]
[1732726826867,1.2997,238.83,238.76,6.46222873]
[1732726827067,4.52435986,238.86,238.78,6.46222873]
[1732726827263,8.78840431,238.85,238.78,6.46222873]
[1732726827464,2.0917,238.84,238.78,6.46222873]
[1732726827965,1.38,238.9,238.82,2.0918]
[1732726827966,2.0915,238.86,238.82,2.0918]
[1732726828373,2.0915,238.86,238.8,6.46222873]
[1732726828571,2.0915,238.86,238.81,2.0919]
[1732726829271,1.38,238.9,238.82,6.46222873]
[1732726829472,8.79198234,238.89,238.82,6.46222873]
[1732726829774,8.79198234,238.88,238.82,6.46222873]
[1732726829974,1.38,238.9,238.82,6.46222873]
[1732726830168,8.79370085,238.89,238.84,6.46222873]
[1732726830375,2.0908,238.94,238.86,8.55362873]
[1732726830563,8.79438836,238.93,238.86,6.46222873]
[1732726830770,8.79438836,238.92,238.86,6.46222873]
[1732726830969,8.79438836,238.91,238.86,6.46222873]
[1732726831168,6.46222873,238.94,238.86,8.55362873]
[1732726831373,8.79469124,238.93,238.86,8.55362873]
[1732726831568,8.79469124,238.92,238.86,8.55362873]
[1732726831765,6.46222873,238.94,238.86,8.55362873]
[1732726831970,8.79436881,238.93,238.86,6.46222873]
[1732726832178,6.46222873,238.94,238.86,6.46222873]
[1732726832369,2.0911,238.91,238.82,10.09054954]
[1732726832569,2.42,238.96,238.85,2.0915]
[1732726832767,8.79485236,238.95,238.85,2.0915]
[1732726833069,2.0911,238.91,238.86,2.0914]
[1732726833370,2.42,238.96,238.86,2.0914]
[1732726833674,2.0911,238.91,238.86,2.0914]
[1732726834169,2.42,238.96,238.86,2.0914]
[1732726834375,8.79529516,238.95,238.86,2.0914]
[1732726834577,8.79529516,238.94,238.86,2.0914]
[1732726834777,2.0911,238.9,238.86,2.0914]
[1732726835572,2.42,239.03,238.88,10.09054954]
[1732726835783,9.42067328,238.99,238.88,10.09054954]
[1732726835971,8.7958159,238.98,238.88,10.09054954]
[1732726836172,9.42067313,238.97,238.88,10.09054954]
[1732726836472,9.42067313,238.96,238.88,10.09054954]
[1732726836779,2.0906,238.96,238.9,2.0911]
[1732726837276,4.0435,239.03,238.91,10.09054954]
[1732726837472,0.62492113,238.99,238.91,10.09054954]
[1732726837678,1.3891,239.03,238.91,10.09054954]
[1732726837970,1.3891,239.03,238.88,11.44434954]
[1732726838174,11.49361527,238.99,238.88,11.44434954]
[1732726838375,2.0907,238.95,238.89,2.0911]
[1732726838571,8.793489,238.94,238.89,2.0911]
[1732726838774,8.793489,238.93,238.9,2.0911]
[1732726839076,2.0907,238.95,238.9,2.0911]
[1732726839266,8.79270631,238.94,238.88,11.44434954]
[1732726839577,8.79294723,238.93,238.9,2.0911]
[1732726839773,2.72246,239.0,238.88,11.44434954]
[1732726839973,9.41634008,238.99,238.93,2.0908]
[1732726840178,8.79191873,238.98,238.93,2.0908]
[1732726840475,8.79191873,238.97,238.96,2.0906]
[1732726840975,8.79191873,238.97,238.93,2.42]
[1732726841175,8.78971965,238.96,238.93,2.42]
[1732726841376,0.30246,239.0,238.88,1.3538]
[1732726841679,9.41427259,238.99,238.88,3.4451]
[1732726841978,10.83132478,238.98,238.87,2.42]
[1732726842181,8.7898603,238.97,238.87,4.5114]
[1732726842379,8.7898603,238.96,238.87,4.5114]
[1732726842679,2.0911,238.9,238.87,2.42]
[1732726842971,2.0911,238.9,238.85,2.0915]
[1732726842972,10.09054954,238.98,238.83,13.87804954]
[1732726843173,9.41120849,238.97,238.86,10.09054954]
[1732726843371,2.0908,238.93,238.88,2.0913]
[1732726843674,8.78688941,238.92,238.88,2.0913]
[1732726843871,2.0906,238.96,238.9,2.0911]
[1732726844073,8.78647187,238.95,238.86,10.09054954]
[1732726844276,8.78647187,238.94,238.86,10.09054954]
[1732726844472,8.78647187,238.93,238.86,10.09054954]
[1732726844677,8.78647187,238.92,238.87,2.0913]
[1732726844878,2.0909,238.93,238.87,2.0913]
[1732726845074,8.78575423,238.92,238.86,10.09054954]
[1732726845274,2.0909,238.93,238.87,2.0913]
[1732726845575,2.091,238.91,238.86,10.09054954]
[1732726845775,8.78657253,238.9,238.84,4.5115]
[1732726845975,8.78657253,238.89,238.84,4.5115]
[1732726846170,10.09054954,238.98,238.85,2.0915]
[1732726846375,9.40951069,238.97,238.85,2.0915]
[1732726846575,9.40951069,238.96,238.85,2.0915]
[1732726846778,8.7853107,238.95,238.85,2.0915]
[1732726846978,8.7853107,238.94,238.85,2.0915]
[1732726847187,10.09054954,238.98,238.85,2.0915]
[1732726847479,9.41194723,238.97,238.83,11.45804954]
[1732726847682,2.091,238.92,238.86,2.0914]
[1732726848479,2.091,238.91,238.86,2.0914]
[1732726853987,2.091,238.91,238.83,11.45804954]
[1732726854288,2.0909,238.92,238.87,2.0913]
[1732726856286,2.0908,238.94,238.84,10.09054954]
[1732726856485,10.88825005,238.93,238.88,2.0912]
[1732726856686,2.0908,238.93,238.88,2.0912]
[1732726857688,2.0908,238.93,238.89,2.0912]
[1732726857983,3.719,238.99,238.87,10.09054954]
[1732726858188,9.42317929,238.98,238.9,6.45561801]
[1732726858388,9.42317929,238.97,238.9,6.45561801]
[1732726858587,2.0907,238.95,238.9,6.45561801]
[1732726858788,8.79904248,238.94,238.9,6.45561801]
[1732726858989,8.79904248,238.93,238.9,8.54671801]
[1732726859288,2.0907,238.95,238.9,8.54671801]
[1732726859484,8.79898896,238.94,238.9,8.54671801]
[1732726859688,8.79898896,238.93,238.9,8.54671801]
[1732726859885,2.0907,238.95,238.9,8.54671801]
[1732726860088,8.79801744,238.94,238.9,8.54671801]
[1732726860285,10.88891744,238.93,238.88,8.54681801]
[1732726860487,2.0909,238.93,238.88,8.54681801]
[1732726860687,6.45561801,238.97,238.88,6.45561801]
[1732726860988,8.79775113,238.96,238.88,6.45561801]
[1732726861178,8.79775113,238.95,238.88,6.45561801]
[1732726861384,8.79775113,238.94,238.88,6.45561801]
[1732726861583,8.79775113,238.93,238.88,6.45561801]
[1732726861787,12.27140219,238.99,238.89,6.45561801]
[1732726861986,9.41579543,238.98,238.9,2.0911]
[1732726862192,8.79221761,238.97,238.9,2.0911]
[1732726862885,8.79221761,238.96,238.9,2.0911]
[1732726863383,8.79221761,238.95,238.86,2.0914]
[1732726863585,6.45561801,238.91,238.82,6.45561801]
[1732726863885,5.81578418,238.99,238.82,6.45561801]
[1732726863886,2.0915,238.85,238.82,6.45561801]
[1732726864285,6.45561801,238.89,238.82,6.45561801]
[1732726864584,2.0915,238.86,238.82,8.54741801]
[1732726865088,2.42,238.91,238.85,2.0915]
[1732726865288,8.77794338,238.9,238.86,6.45561801]
[1732726865586,8.77794338,238.89,238.88,6.45561801]
[1732726865783,6.45561801,238.96,238.88,6.45561801]
[1732726866086,2.0908,238.94,238.9,6.45561801]
[1732726866288,8.78070871,238.93,238.9,6.45561801]
[1732726866991,8.78070871,238.92,238.88,6.45561801]
[1732726867191,8.78070871,238.91,238.86,6.45561801]
[1732726867394,2.0909,238.92,238.87,2.0913]
[1732726867588,8.79839903,238.91,238.88,6.45561801]
[1732726867788,2.0909,238.92,238.88,6.45561801]
[1732726867990,10.88968682,238.91,238.88,6.45561801]
[1732726868196,6.45561801,238.96,238.88,6.45561801]
[1732726868393,9.42684027,238.95,238.88,6.45561801]
[1732726868597,8.80273636,238.94,238.88,6.45561801]
[1732726868887,2.091,238.91,238.88,6.45561801]
[1732726870291,2.0909,238.93,238.88,8.54681801]
[1732726870594,8.79756943,238.92,238.9,6.45561801]
[1732726870806,2.0907,238.95,238.9,8.54671801]
[1732726871092,8.79579459,238.94,238.9,8.54671801]
[1732726871293,8.79579459,238.93,238.9,8.54671801]
[1732726871490,8.79579459,238.96,238.9,6.45561801]
[1732726871695,2.0908,238.94,238.9,6.45561801]
[1732726871889,8.80231796,238.93,238.9,6.45561801]
[1732726872084,2.0908,238.94,238.9,6.45561801]
[1732726872293,8.80245067,238.93,238.9,6.45561801]
[1732726872489,2.0911,238.9,238.85,2.0915]
[1732726872695,6.45561801,238.93,238.86,6.45561801]
[1732726872696,8.80322041,238.89,238.86,6.45561801]
[1732726872891,8.80322041,238.88,238.86,6.45561801]
[1732726873089,6.45561801,238.93,238.86,6.45561801]
[1732726873090,2.0911,238.91,238.86,6.45561801]
[1732726873289,8.80210081,238.9,238.85,2.0915]
[1732726873493,8.80210081,238.89,238.86,6.45561801]
[1732726873695,2.0911,238.9,238.86,6.45561801]
[1732726873696,8.80210081,238.88,238.86,6.45561801]
[1732726873893,2.0911,238.9,238.86,6.45561801]
[1732726874196,8.80445348,238.89,238.86,6.45561801]
[1732726874495,8.80445348,238.88,238.86,6.45561801]
[1732726874692,6.45561801,238.93,238.85,2.0915]
[1732726874991,8.80652172,238.92,238.85,6.45561801]
[1732726875185,6.45561801,238.93,238.82,6.45561801]
[1732726875186,15.26213973,238.91,238.82,6.45561801]
[1732726875391,8.80652172,238.9,238.82,6.45561801]
[1732726875992,6.45561801,238.89,238.82,6.45561801]
[1732726876194,8.80652172,238.88,238.82,6.45561801]
[1732726876386,8.80652172,238.88,238.84,8.54721801]
[1732726876586,8.80652172,238.88,238.86,6.45561801]
[1732726876792,8.80652172,238.87,238.86,6.45561801]
[1732726876990,8.80652172,238.91,238.86,6.45561801]
[1732726877191,8.80652172,238.9,238.86,6.45561801]
[1732726877497,8.80652172,238.89,238.84,6.45561801]
[1732726877690,8.80652172,238.88,238.84,6.45561801]
[1732726877997,8.80652172,238.87,238.84,6.45561801]
[1732726878186,2.0914,238.88,238.84,6.45561801]
[1732726878392,6.45561801,238.86,238.75,2.6689]
[1732726878592,6.45561801,238.84,238.77,6.45561801]
[1732726878897,10.90305715,238.83,238.77,2.0922]
[1732726879088,6.45561801,238.86,238.79,6.45561801]
[1732726879299,8.80707999,238.85,238.79,6.45561801]
[1732726879592,2.0918,238.83,238.79,6.45561801]
[1732726879799,8.80707999,238.82,238.79,6.45561801]
[1732726879991,2.0918,238.83,238.79,6.45561801]
[1732726880193,10.88788762,238.82,238.79,6.45561801]
[1732726880489,2.0918,238.82,238.79,6.45561801]
[1732726880688,6.45561801,238.86,238.79,6.45561801]
[1732726880892,2.0917,238.83,238.79,6.45561801]
[1732726881091,8.79758703,238.82,238.79,6.45561801]
[1732726881293,2.0917,238.83,238.79,6.45561801]
[1732726882001,6.45561801,238.86,238.78,2.0921]
[1732726882202,8.79801805,238.85,238.77,6.45561801]
[1732726882498,8.79801805,238.84,238.77,6.45561801]
[1732726882702,10.88971805,238.83,238.79,6.45561801]
[1732726882905,2.0917,238.83,238.79,6.45561801]
[1732726883092,6.45561801,238.86,238.79,6.45561801]
[1732726883295,6.45561801,238.86,238.78,2.0921]
[1732726883296,2.0918,238.82,238.78,2.0921]
[1732726883799,2.0918,238.82,238.79,6.45561801]
[1732726884598,2.0918,238.82,238.77,8.54781801]
[1732726884793,6.45561801,238.82,238.65,4.065]
[1732726884998,6.45561801,238.8,238.66,2.42]
[1732726885300,8.78691629,238.79,238.72,8.54821801]
[1732726885497,6.45561801,238.8,238.72,6.45561801]
[1732726885701,2.0924,238.76,238.72,6.45561801]
[1732726886096,6.45561801,238.8,238.72,6.45561801]
[1732726886296,8.77838752,238.79,238.72,6.45561801]
[1732726886500,6.45561801,238.8,238.72,6.45561801]
[1732726886795,2.0923,238.77,238.73,2.0926]
[1732726888101,6.45561801,238.8,238.72,6.45561801]
[1732726888303,8.77499744,238.79,238.72,8.54831801]
[1732726888503,6.45561801,238.8,238.72,8.54831801]
[1732726888703,2.0923,238.77,238.73,2.0926]
[1732726888900,6.45561801,238.8,238.72,6.45561801]
[1732726889097,8.77495224,238.79,238.72,6.45561801]
[1732726889294,2.0923,238.77,238.72,8.54821801]
[1732726890003,2.42,238.81,238.72,2.0926]
[1732726890004,2.0924,238.76,238.72,2.0926]
[1732726890599,2.42,238.81,238.72,6.45561801]
[1732726890801,8.87561801,238.81,238.72,6.45561801]
[1732726891200,6.45561801,238.79,238.72,6.45561801]
[1732726892397,6.45561801,238.79,238.7,6.45561801]
[1732726892595,6.45561801,238.77,238.68,6.45561801]
[1732726892796,2.42,238.81,238.66,6.45561801]
[1732726892797,6.45561801,238.75,238.66,6.45561801]
[1732726893308,2.0926,238.73,238.68,8.54861801]
[1732726893605,6.45561801,238.75,238.7,6.45561801]
[1732726893606,2.42,238.75,238.7,6.45561801]
[1732726893806,2.0925,238.74,238.7,6.45561801]
[1732726894109,6.45561801,238.79,238.7,6.45561801]
[1732726894401,2.42,238.78,238.7,6.45561801]
[1732726894609,2.42,238.78,238.71,2.0927]
[1732726894610,2.0925,238.75,238.71,2.0927]
[1732726894907,2.0925,238.75,238.72,6.45561801]
[1732726895301,2.0925,238.75,238.71,2.0927]
[1732726896105,6.45561801,238.77,238.68,6.45561801]
[1732726896508,2.0927,238.72,238.68,6.45561801]
[1732726896704,6.45561801,238.77,238.68,6.45561801]
[1732726896909,6.45561801,238.75,238.68,6.45561801]
[1732726897408,8.49963138,238.75,238.66,1.3482]
[1732726897605,8.49963138,238.75,238.66,6.45561801]
[1732726898106,14.98,238.78,238.6,2.42]
[1732726898107,6.45561801,238.73,238.6,2.42]
[1732726898301,2.093,238.69,238.64,6.45561801]
[1732726898710,2.093,238.69,238.64,8.54891801]
[1732726899607,2.42,238.72,238.64,6.45561801]
[1732726900516,6.45561801,238.71,238.62,6.45561801]
[1732726900812,2.093,238.68,238.62,6.45561801]
[1732726901010,6.45561801,238.71,238.62,6.45561801]
[1732726901209,6.45561801,238.71,238.62,8.54911801]
[1732726901507,2.0932,238.67,238.62,8.54911801]
[1732726901707,2.42,238.72,238.59,1.3191]
[1732726901708,6.45561801,238.69,238.59,1.3191]
[1732726901907,2.0933,238.66,238.61,8.54921801]
[1732726902313,6.45561801,238.67,238.59,3.4128]
[1732726902618,6.45561801,238.65,238.57,6.45561801]
[1732726902819,6.45561801,238.65,238.57,8.54951801]
[1732726903116,4.1868,238.71,238.6,6.45561801]
[1732726903311,4.1868,238.71,238.63,2.0934]
[1732726903312,2.42,238.7,238.63,2.0934]
[1732726903505,2.0932,238.67,238.62,6.45561801]
[1732726903709,2.42,238.7,238.62,6.45561801]
[1732726905113,2.0931,238.67,238.63,2.0935]
[1732726905509,2.42,238.7,238.52,2.42]
[1732726905717,2.42,238.7,238.61,6.45561801]
[1732726905718,6.45561801,238.69,238.61,6.45561801]
[1732726905912,6.45561801,238.66,238.52,2.42]
[1732726906113,6.45561801,238.66,238.59,6.45561801]
[1732726906418,2.0936,238.62,238.59,6.45561801]
[1732726906815,2.0936,238.62,238.57,6.45561801]
[1732726907921,2.0936,238.62,238.58,2.0939]
[1732726910026,4.1868,238.71,238.61,6.45561801]
[1732726910218,4.1868,238.71,238.63,6.45561801]
[1732726910413,2.42,238.7,238.63,6.45561801]
[1732726911322,2.093,238.68,238.63,6.45561801]
[1732726911523,2.42,238.7,238.63,6.45561801]
[1732726912525,2.42,238.7,238.48,4.1896]
[1732726912526,19.01561801,238.64,238.36,5.800275]
[1732726912826,36.8668,238.71,238.52,6.45561801]
[1732726912827,6.45561801,238.62,238.52,6.45561801]
[1732726913129,2.42,238.61,238.54,6.45561801]
[1732726913423,6.45561801,238.64,238.56,6.45561801]
[1732726913621,2.0937,238.6,238.56,6.45561801]
[1732726913823,6.45561801,238.6,238.49,2.7407]
[1732726914025,2.0942,238.55,238.49,9.19631801]
[1732726914224,6.45561801,238.58,238.51,6.45561801]
[1732726914419,2.42,238.63,238.55,6.45561801]
[1732726914817,8.87561801,238.63,238.55,6.45561801]
[1732726915025,6.45561801,238.61,238.53,6.45561801]
[1732726915226,6.45561801,238.61,238.52,6.45561801]
[1732726915422,6.45561801,238.61,238.5,1.2873]
[1732726915627,6.45561801,238.61,238.52,6.45561801]
[1732726916129,6.45561801,238.59,238.5,1.2873]
[1732726916325,8.52267088,238.59,238.5,1.2873]
[1732726916523,2.0943,238.54,238.49,1.3574]
[1732726917123,2.42,238.56,238.49,1.3574]
[1732726917426,2.0943,238.53,238.49,1.3574]
[1732726918423,2.0943,238.53,238.5,6.45561801]
[1732726918729,2.42,238.56,238.5,6.45561801]
[1732726919636,2.0943,238.54,238.5,6.45561801]
[1732726920027,2.42,238.56,238.5,6.45561801]
[1732726920334,2.42,238.56,238.49,1.3574]
[1732726920335,6.45561801,238.55,238.49,1.3574]
[1732726921034,2.42,238.56,238.49,1.3574]
[1732726921236,2.0944,238.52,238.49,1.3574]
[1732726921533,2.0944,238.52,238.48,2.0948]
[1732726921733,2.0946,238.5,238.46,2.0949]
[1732726921930,6.45561801,238.51,238.44,6.45561801]
[1732726922434,2.0948,238.49,238.44,8.55071801]
[1732726922636,6.45561801,238.54,238.46,6.45561801]
[1732726923539,2.0945,238.52,238.46,6.45561801]
[1732726923833,6.45561801,238.54,238.46,6.45561801]
[1732726924228,6.45561801,238.54,238.46,8.55061801]
[1732726924836,2.0946,238.51,238.46,8.55061801]
[1732726926034,2.42,238.56,238.48,6.45561801]
[1732726926336,2.42,238.56,238.43,4.1446]
[1732726926337,6.45561801,238.59,238.52,6.45561801]
[1732726926526,2.0942,238.55,238.52,6.45561801]
[1732726926730,6.45561801,238.59,238.52,6.45561801]
[1732726926936,6.45561801,238.59,238.5,6.45561801]
[1732726927130,2.0942,238.56,238.5,6.45561801]
[1732726927335,6.45561801,238.59,238.5,6.45561801]
[1732726927731,6.45561801,238.61,238.52,6.45561801]
[1732726928238,6.45561801,238.63,238.54,6.45561801]
[1732726928738,7.23170801,238.63,238.54,6.45561801]
[1732726929334,2.0936,238.61,238.56,2.0941]
[1732726929634,2.0936,238.61,238.53,1.3419]
[1732726929938,6.45561801,238.61,238.53,1.3419]
[1732726930135,0.77609,238.63,238.53,2.6805]
[1732726930136,6.45561801,238.59,238.53,2.6805]
[1732726930741,2.0941,238.56,238.53,2.6805]
[1732726930933,6.45561801,238.55,238.48,6.45561801]
[1732726931333,8.54991801,238.55,238.49,2.0946]
[1732726931536,6.45561801,238.55,238.46,6.45561801]
[1732726931935,6.45561801,238.55,238.48,6.45561801]
[1732726932136,2.0943,238.54,238.49,2.0946]
[1732726934033,10.1226939,238.56,238.45,2.7174]
[1732726934639,2.0947,238.5,238.45,4.8124]
[1732726935034,2.42,238.54,238.39,2.42]
[1732726935342,10.1226939,238.51,238.36,3.9994]
[1732726936138,10.1226939,238.51,238.37,2.0957]
[1732726936338,2.42,238.54,238.36,3.9994]
[1732726936538,10.1226939,238.51,238.36,3.9994]
[1732726936743,2.0953,238.42,238.37,2.0957]
[1732726937144,2.0952,238.44,238.37,2.0957]
[1732726937445,2.42,238.48,238.36,3.9994]
[1732726937739,2.0952,238.44,238.36,3.9994]
[1732726938138,2.0952,238.44,238.39,2.0956]
[1732726938544,2.42,238.48,238.36,3.9994]
[1732726939045,2.42,238.52,238.38,10.1226939]
[1732726939236,2.095,238.46,238.41,2.0954]
[1732726939543,12.5426939,238.53,238.38,10.1226939]
[1732726939736,0.62240974,238.52,238.38,10.1226939]
[1732726940137,2.0949,238.47,238.41,2.0954]
[1732726940334,12.5426939,238.53,238.41,2.0954]
[1732726940533,0.62242128,238.52,238.38,10.1226939]
[1732726940732,2.0945,238.51,238.39,2.42]
[1732726940940,30.34575347,238.6,238.44,10.1226939]
[1732726940941,1.3043,238.6,238.44,10.1226939]
[1732726941137,9.35613405,238.59,238.45,2.42]
[1732726941443,10.1226939,238.61,238.45,2.42]
[1732726941444,10.1226939,238.58,238.45,2.42]
[1732726941640,10.1226939,238.61,238.46,4.0673]
[1732726941945,10.1226939,238.58,238.46,4.0673]
[1732726942135,10.1226939,238.55,238.46,4.0673]
[1732726942335,2.0944,238.53,238.46,4.0673]
[1732726942549,10.1226939,238.55,238.46,4.0673]
[1732726943243,2.42,238.54,238.46,2.6607]
[1732726943442,10.1226939,238.52,238.39,12.5426939]
[1732726944242,10.1226939,238.52,238.39,2.42]
[1732726944845,10.1226939,238.52,238.39,4.5155]
[1732726945045,10.1226939,238.52,238.39,2.0955]
[1732726945342,2.0948,238.48,238.38,2.42]
[1732726945542,10.1226939,238.52,238.38,2.42]
[1732726946443,2.0954,238.42,238.38,2.42]
[1732726946649,10.1226939,238.52,238.38,2.42]
[1732726947849,10.1226939,238.52,238.34,10.1226939]
[1732726948040,10.1226939,238.48,238.34,10.1226939]
[1732726948243,2.0952,238.44,238.35,2.0959]
[1732726948443,2.42,238.47,238.35,2.0959]
[1732726948847,2.0955,238.4,238.36,2.0958]
[1732726949247,2.42,238.47,238.33,5.1541]
[1732726949448,2.0957,238.38,238.34,2.096]
[1732726949851,2.42,238.47,238.33,5.1541]
[1732726950051,2.0956,238.39,238.35,2.0959]
[1732726950252,2.42,238.47,238.33,5.1541]
[1732726950652,2.0956,238.39,238.34,2.0959]
[1732726951151,2.0955,238.4,238.33,15.2767939]
[1732726951342,2.42,238.47,238.33,5.1541]
[1732726951545,2.42,238.47,238.33,15.2767939]
[1732726951754,2.42,238.51,238.36,10.1226939]
[1732726952056,10.1226939,238.5,238.36,10.1226939]
[1732726952247,2.0952,238.43,238.36,10.1226939]
[1732726952451,10.1226939,238.5,238.36,10.1226939]
[1732726952855,2.0952,238.43,238.36,10.1226939]
[1732726953155,10.1226939,238.5,238.36,10.1226939]
[1732726953348,2.0952,238.44,238.39,2.0956]
[1732726953548,10.1226939,238.5,238.39,2.0956]
[1732726954749,2.0953,238.43,238.39,2.0956]
[1732726954948,2.0953,238.43,238.34,10.1226939]
[1732726955656,2.0953,238.42,238.38,2.0956]
[1732726955956,10.1226939,238.5,238.34,10.1226939]
[1732726956254,2.0953,238.43,238.34,10.1226939]
[1732726956449,2.0953,238.43,238.38,6.48279812]
[1732726956758,2.0953,238.43,238.38,8.57839812]
[1732726956950,2.0949,238.48,238.38,6.48279812]
[1732726957152,6.48279812,238.47,238.38,6.48279812]
[1732726957450,6.48279812,238.49,238.39,2.0956]
[1732726957656,6.48279812,238.47,238.38,6.48279812]
[1732726958050,6.48279812,238.47,238.38,8.57839812]
[1732726958452,6.48279812,238.47,238.38,2.0956]
[1732726958851,2.0953,238.43,238.38,2.0956]
[1732726960553,2.0953,238.42,238.38,8.57839812]
[1732726960853,6.48279812,238.47,238.38,6.48279812]
[1732726961650,2.0953,238.42,238.38,8.57839812]
[1732726962259,6.48279812,238.47,238.38,8.57839812]
[1732726962759,6.48279812,238.43,238.33,2.7341]
[1732726962954,6.48279812,238.43,238.35,6.48279812]
[1732726963456,6.48279812,238.43,238.35,8.57869812]
[1732726963457,2.0956,238.39,238.35,8.57869812]
[1732726964055,1.3806,238.5,238.37,6.48279812]
[1732726964056,6.48279812,238.45,238.37,6.48279812]
[1732726964456,6.48279812,238.45,238.33,2.7341]
[1732726964655,6.48279812,238.45,238.36,6.48279812]
[1732726964853,2.0956,238.4,238.36,6.48279812]
[1732726965054,6.48279812,238.43,238.34,6.48279812]
[1732726965552,6.48279812,238.45,238.35,6.48279812]
[1732726965954,6.48279812,238.43,238.33,2.7341]
[1732726966457,6.48279812,238.43,238.33,9.21689812]
[1732726966651,2.0957,238.38,238.34,2.096]
[1732726966854,6.48279812,238.41,238.33,9.21689812]
[1732726967757,2.0957,238.38,238.35,6.48279812]
[1732726968266,2.0957,238.38,238.34,2.096]
[1732726968558,6.48279812,238.42,238.35,6.48279812]
[1732726968754,2.0955,238.4,238.35,8.57869812]
[1732726968962,6.48279812,238.42,238.35,6.48279812]
[1732726969666,2.42,238.45,238.35,6.48279812]
[1732726969667,6.48279812,238.44,238.35,6.48279812]
[1732726969860,9.12313712,238.43,238.35,6.48279812]
[1732726970167,6.48279812,238.44,238.35,8.57869812]
[1732726970456,9.12315914,238.43,238.35,6.48279812]
[1732726970761,293.7813681,238.66,238.36,2.0958]
[1732726970960,6.48279812,238.44,238.36,2.0958]
[1732726971163,2.0954,238.41,238.36,2.0958]
[1732726971353,2.5851,238.52,238.37,6.48279812]
[1732726971559,6.48279812,238.46,238.37,6.48279812]
[1732726971763,2.0954,238.42,238.37,6.48279812]
[1732726972062,6.48279812,238.46,238.39,2.0956]
[1732726972454,6.48279812,238.48,238.39,6.48279812]
[1732726972660,6.48279812,238.46,238.37,2.42]
[1732726972865,2.0952,238.43,238.37,8.90279812]
[1732726973057,2.0952,238.43,238.38,2.0956]
[1732726973863,6.48279812,238.44,238.37,2.42]
[1732726974056,2.0953,238.42,238.37,4.5157]
[1732726974760,2.0954,238.41,238.37,4.5157]
[1732726975369,6.48279812,238.44,238.37,2.42]
[1732726975561,9.16141764,238.43,238.38,2.0956]
[1732726975757,6.48279812,238.44,238.38,2.0956]
[1732726975961,9.16098792,238.43,238.38,2.0956]
[1732726976163,6.48279812,238.46,238.38,2.0956]
[1732726976464,9.16135805,238.45,238.38,2.0956]
[1732726976662,9.16135805,238.44,238.38,2.0956]
[1732726976865,11.25665805,238.43,238.38,2.0956]
[1732726977164,2.0953,238.43,238.38,2.0956]
[1732726977466,9.16989352,238.42,238.37,2.42]
[1732726977671,9.16939362,238.41,238.38,6.48279812]
[1732726977967,6.48279812,238.46,238.38,6.48279812]
[1732726978158,11.26565551,238.45,238.4,6.48279812]
[1732726978363,11.26565551,238.45,238.37,2.42]
[1732726978364,9.17055551,238.44,238.37,2.42]
[1732726978564,9.17055551,238.44,238.39,2.0956]
[1732726978565,11.26575551,238.44,238.39,2.0956]
[1732726978861,6.48279812,238.47,238.39,2.0956]
[1732726979059,6.48279812,238.47,238.38,6.48279812]
[1732726979259,2.0953,238.43,238.38,8.57839812]
[1732726979464,2.0953,238.43,238.38,6.48279812]
[1732726980168,2.0949,238.47,238.42,8.57799812]
[1732726980357,9.17629098,238.46,238.44,6.48279812]
[1732726980567,3.7002,238.57,238.44,6.48279812]
[1732726980766,6.48279812,238.54,238.47,2.0948]
[1732726981067,6.48279812,238.52,238.44,8.90279812]
[1732726981262,2.0949,238.48,238.43,4.5152]
[1732726981459,9.17706779,238.47,238.44,6.48279812]
[1732726981662,6.48279812,238.53,238.44,6.48279812]
[1732726981860,9.17721425,238.52,238.44,6.48279812]
[1732726982264,9.17721425,238.51,238.44,6.48279812]
[1732726982463,9.17721425,238.5,238.44,6.48279812]
[1732726982668,6.48279812,238.53,238.44,6.48279812]
[1732726982968,9.17573191,238.52,238.46,6.48279812]
[1732726983170,29.04098852,238.59,238.48,6.48279812]
[1732726983471,15.65642368,238.58,238.5,6.48279812]
[1732726983661,9.17362556,238.57,238.5,6.48279812]